bitfinex/quotes_ETHUSD_20250622
["timestamp","ask_amount","ask_price","bid_price","bid_amount"]
[1750551852340,0.41927832,2290.4,2290.1,3.05655305]
[1750551852753,0.41927832,2290.4,2288.5,3.05869618]
[1750551853050,10.9407,2290.2,2289.7,3.05715066]
[1750551853192,10.0,2290.0,2289.4,3.05748272]
[1750551853393,0.05459466,2289.9,2289.3,3.05761758]
[1750551853617,3.614,2289.8,2289.3,3.05761758]
[1750551853927,10.0,2289.6,2289.1,3.05789261]
[1750551854120,0.05460651,2289.5,2289.1,3.05789261]
[1750551854578,0.05460651,2289.5,2289.2,3.05780999]
[1750551854716,0.05460651,2289.5,2289.0,3.05806894]
[1750551854924,30.0,2290.0,2289.5,3.05743612]
[1750551855157,3.614,2289.6,2289.5,3.05743612]
[1750551855324,13.614,2289.6,2289.5,3.05743612]
[1750551855525,0.9407,2290.2,2289.0,0.30580689]
[1750551855823,3.614,2290.3,2290.2,3.05650161]
[1750551856471,30.0,2291.8,2290.3,0.9319]
[1750551856637,0.36469712,2291.8,2290.4,10.59364422]
[1750551856844,0.05455528,2291.7,2290.6,3.05586552]
[1750551857047,9.86355528,2291.7,2290.8,3.05570106]
[1750551857283,9.809,2291.7,2290.7,3.05583446]
[1750551857567,0.05455334,2291.6,2290.4,13.05620223]
[1750551857862,14.3617,2292.0,2291.7,3.05447483]
[1750551858038,10.0545474,2291.9,2291.7,3.05447483]
[1750551858360,14.3617,2292.0,2291.6,3.05452141]
[1750551858540,10.05454663,2291.9,2291.6,3.05452141]
[1750551858879,14.3617,2292.0,2291.8,3.05428121]
[1750551859170,0.05454276,2291.9,2291.8,3.05428121]
[1750551859373,0.05454276,2291.9,2291.1,3.05530094]
[1750551859574,0.05454276,2291.9,2291.0,3.96609745]
[1750551859746,30.0,2291.8,2291.1,3.05519104]
[1750551860074,10.05455861,2291.7,2291.1,3.05521122]
[1750551860375,10.0,2291.5,2291.1,3.05521122]
[1750551860553,0.05455955,2291.4,2291.1,3.05521122]
[1750551861164,0.05455955,2291.4,2291.0,3.0553306]
[1750551861373,30.0,2291.2,2290.6,3.05583925]
[1750551861542,13.46256932,2291.1,2290.8,3.05556862]
[1750551861747,13.408,2291.1,2290.8,3.05556862]
[1750551861970,13.408,2291.1,2290.6,3.05593597]
[1750551862353,10.488,2291.5,2290.7,0.9107]
[1750551862555,3.613,2291.8,2290.7,10.9107]
[1750551862789,0.05455002,2291.7,2291.5,3.05468069]
[1750551863480,0.05455002,2291.7,2291.3,3.0549152]
[1750551863481,0.05455002,2291.7,2291.6,3.05463431]
[1750551863703,0.05455002,2291.7,2291.4,3.05481853]
[1750551863899,0.05455002,2291.7,2291.5,3.05474209]
[1750551864114,0.05455002,2291.7,2291.6,3.05463431]
[1750551864331,3.613,2291.8,2291.2,0.04363986]
[1750551864616,0.9495,2292.2,2292.1,3.05396797]
[1750551864766,13.399,2292.4,2291.9,3.05410779]
[1750551864970,13.398,2292.4,2292.3,3.05370152]
[1750551865170,3.613,2292.4,2292.3,3.05370152]
[1750551867677,3.612,2293.3,2292.3,0.65873734]
[1750551867873,3.66651351,2293.3,2292.2,3.05383474]
[1750551868104,10.0,2293.2,2292.9,3.05286208]
[1750551868266,3.612,2293.3,2293.0,3.05276929]
[1750551868474,10.05451515,2293.2,2292.1,0.8872]
[1750551868804,10.0,2292.9,2292.4,3.05347665]
[1750551869008,9.82452453,2292.8,2292.5,3.05342208]
[1750551869173,9.77,2292.8,2292.5,3.05342208]
[1750551869378,0.05452453,2292.7,2292.3,3.05356928]
[1750551869782,0.05452453,2292.7,2292.4,3.0535439]
[1750551870303,0.05452453,2292.7,2292.5,3.05340495]
[1750551870513,0.05452453,2292.7,2292.6,3.05330192]
[1750551870808,15.0333,2293.8,2292.5,10.9123]
[1750551870991,0.05450412,2293.7,2293.5,3.05209034]
[1750551871181,10.05450412,2293.7,2293.4,3.05218831]
[1750551871394,10.0,2293.5,2292.9,3.05277699]
[1750551871708,40.0,2293.3,2292.7,3.05307508]
[1750551872033,0.9373,2293.0,2291.9,3.05420005]
[1750551872183,13.42452956,2292.9,2292.3,3.05367923]
[1750551872376,13.37,2292.9,2292.3,3.05367923]
[1750551872923,13.37,2292.9,2292.3,3.05369148]
[1750551873479,0.05452951,2292.8,2292.3,3.053697]
[1750551873678,13.10764572,2292.8,2292.1,3.05388625]
[1750551874011,18.15893566,2292.9,2292.2,3.05383046]
[1750551874181,10.0,2292.6,2292.0,3.05405652]
[1750551874382,0.05453834,2292.5,2291.9,0.04363067]
[1750551874719,10.0,2292.6,2292.3,3.05359948]
[1750551874877,10.0,2292.6,2292.5,3.05343511]
[1750551875076,40.0,2292.9,2292.5,3.05343453]
[1750551875380,10.0,2292.7,2292.2,0.04362036]
[1750551875712,10.0,2292.7,2292.5,3.05331307]
[1750551875901,0.05452545,2292.6,2292.4,3.05352678]
[1750551876113,0.05452545,2292.6,2292.4,3.05348793]
[1750551876534,0.05452545,2292.6,2292.0,3.05409286]
[1750551876731,0.8812,2292.4,2291.4,3.05490093]
[1750551876933,0.05454065,2292.3,2292.2,3.05371274]
[1750551877326,0.8812,2293.2,2292.3,3.05370152]
[1750551877494,0.8812,2293.2,2292.4,3.05348339]
[1750551877495,3.553,2292.9,2292.4,3.05348339]
[1750551877691,0.05452567,2292.8,2292.4,3.05356831]
[1750551877930,0.05452567,2292.8,2292.5,3.05342676]
[1750551878332,0.05452567,2292.8,2292.7,3.05316875]
[1750551878741,13.553,2292.9,2292.8,3.05303558]
[1750551879412,3.553,2292.9,2292.8,3.05303558]
[1750551879603,0.8812,2293.2,2292.5,3.0533905]
[1750551879943,10.0,2293.4,2293.0,3.05276209]
[1750551880127,0.05451437,2293.3,2293.0,3.05276209]
[1750551880529,0.05451437,2293.3,2292.8,3.05295206]
[1750551880729,0.05451437,2293.3,2292.1,0.8573]
[1750551880924,10.0,2293.1,2292.1,3.91122805]
[1750551881225,0.8613,2292.8,2292.5,3.05342671]
[1750551881404,3.60752752,2292.7,2292.5,3.05342671]
[1750551881740,3.60752752,2292.7,2292.4,3.05347766]
[1750551881942,3.553,2292.7,2292.6,3.05330192]
[1750551882103,0.8613,2293.2,2292.5,3.05342872]
[1750551882104,0.05452063,2293.1,2292.9,3.05284748]
[1750551882437,0.05452063,2293.1,2292.5,0.0436165]
[1750551882438,0.8613,2293.2,2293.1,3.05263616]
[1750551882801,0.05451721,2293.3,2293.1,3.05263616]
[1750551883001,3.553,2293.5,2293.4,3.05223685]
[1750551883002,3.60750956,2293.5,2293.4,3.05223685]
[1750551883213,3.553,2293.5,2293.4,3.05223685]
[1750551883459,10.485,2293.8,2293.7,3.05183764]
[1750551884014,10.485,2293.8,2293.3,3.05236994]
[1750551884240,10.485,2293.8,2293.6,3.0519707]
[1750551884241,0.05450528,2293.7,2293.6,3.0519707]
[1750551884443,10.485,2293.8,2293.7,3.05183764]
[1750551884626,10.485,2293.8,2293.2,0.04360081]
[1750551884627,10.485,2293.8,2293.6,3.05195831]
[1750551884825,10.485,2293.8,2293.7,3.05183764]
[1750551885032,10.485,2293.8,2293.6,3.05196461]
[1750551885408,10.485,2293.8,2293.7,3.05183764]
[1750551885607,10.485,2293.8,2293.1,3.05255876]
[1750551885848,0.05450099,2293.7,2293.2,3.05248519]
[1750551886018,0.05450099,2293.7,2293.3,3.05234906]
[1750551886549,0.05450099,2293.7,2293.2,3.05247847]
[1750551886752,10.05450099,2293.7,2292.6,0.9464]
[1750551886946,10.9467,2293.5,2292.4,3.05351815]
[1750551887123,10.0,2293.3,2292.9,3.05281236]
[1750551887340,0.05451616,2293.2,2292.8,3.05298308]
[1750551887748,0.05451616,2293.2,2292.7,3.05312335]
[1750551887950,0.05451616,2293.2,2292.7,3.05314795]
[1750551888121,0.05451616,2293.2,2292.8,3.05301993]
[1750551888735,0.05451616,2293.2,2292.9,3.05288833]
[1750551889051,0.05451616,2293.2,2292.7,3.05314082]
[1750551889529,0.05451616,2293.2,2292.4,0.48732229]
[1750551889713,0.05451616,2293.2,2293.0,3.0526804]
[1750551889942,0.05451616,2293.2,2293.1,3.05263616]
[1750551890128,19.212,2293.3,2293.1,3.05263616]
[1750551890332,3.552,2293.4,2293.3,3.05236994]
[1750551890541,3.552,2293.4,2292.4,0.44370654]
[1750551890732,0.9087,2293.3,2292.2,1.3905962]
[1750551891145,0.9087,2293.3,2292.8,3.05295086]
[1750551891566,0.9087,2292.7,2291.7,0.8653]
[1750551891856,14.1587,2292.7,2291.7,0.8653]
[1750551892019,30.0,2292.6,2291.7,0.8653]
[1750551892220,0.0545348,2292.5,2292.2,3.05382668]
[1750551892445,0.0545348,2292.5,2291.8,0.3919847]
[1750551892819,0.0545348,2292.5,2291.4,10.0]
[1750551892820,0.0545348,2292.5,2291.2,0.8653]
[1750551892831,0.0545348,2292.5,2291.3,3.05503426]
[1750551893071,0.0545348,2292.5,2291.2,0.8653]
[1750551893315,13.05374354,2292.3,2291.6,3.05454086]
[1750551893463,9.74754508,2292.2,2291.8,3.05436026]
[1750551893658,9.693,2292.2,2291.2,10.8653]
[1750551893855,10.9087,2292.1,2291.3,1.3920569]
[1750551894057,10.9087,2292.1,2291.3,0.04363752]
[1750551894058,3.05423447,2291.9,2291.3,0.04363752]
[1750551894267,3.05423447,2291.9,2290.8,4.94997378]
[1750551894268,10.0,2291.7,2290.8,8.87091649]
[1750551894562,0.05455787,2291.6,2290.8,5.81527378]
[1750551894891,0.05455787,2291.6,2290.0,11.89574221]
[1750551894892,0.05455787,2291.6,2290.5,0.8653]
[1750551895082,0.9087,2291.5,2291.0,3.0553287]
[1750551895380,9.74156262,2291.4,2291.0,3.0553287]
[1750551895523,9.687,2291.4,2291.1,3.05521935]
[1750551895724,9.687,2291.4,2290.5,0.8653]
[1750551895963,10.0,2291.3,2290.5,0.39214444]
[1750551896147,0.05456972,2291.2,2290.5,0.39214444]
[1750551896467,0.05456972,2291.2,2290.9,3.05545115]
[1750551896638,0.05456972,2291.2,2290.5,0.39214444]
[1750551896833,0.05456972,2291.2,2290.2,10.0]
[1750551897036,0.05456972,2291.2,2290.9,3.05546016]
[1750551897223,0.05456972,2291.2,2290.8,3.05565768]
[1750551897664,0.05456972,2291.2,2290.2,10.0]
[1750551897886,10.0,2290.9,2290.3,3.05627709]
[1750551898188,3.0559251,2290.7,2290.0,3.05668327]
[1750551898358,3.0559251,2290.7,2289.2,3.05779101]
[1750551898359,40.0,2290.3,2289.1,3.05784116]
[1750551898542,10.94,2290.5,2288.7,6.66944949]
[1750551898543,10.0,2289.6,2288.7,6.66944949]
[1750551898766,10.0,2289.6,2287.6,10.479]
[1750551898767,10.0,2288.9,2288.2,0.8986]
[1750551898965,10.0,2288.9,2287.1,11.89574221]
[1750551898966,30.05461278,2288.8,2287.9,3.9580531]
[1750551899165,6.66617632,2288.7,2288.0,3.05932587]
[1750551899365,0.05462442,2288.6,2287.5,0.8986]
[1750551899668,0.94,2289.0,2288.7,3.05850482]
[1750551899669,0.05462946,2288.8,2288.7,3.05850482]
[1750551899877,0.94,2289.3,2289.0,3.05805477]
[1750551900204,11.1188293,2289.8,2289.1,3.05797038]
[1750551900205,0.0546108,2289.6,2289.1,3.05797038]
[1750551900363,1.1188293,2289.8,2289.7,3.05716906]
[1750551900759,30.0,2290.6,2290.2,3.05648052]
[1750551900955,0.94,2290.8,2290.1,0.04366325]
[1750551901200,30.0,2290.6,2289.2,0.8986]
[1750551901411,10.0,2290.1,2289.7,3.05716476]
[1750551901608,10.0,2289.8,2288.8,0.8986]
[1750551901778,30.0,2289.9,2288.4,0.8986]
[1750551901779,10.0,2289.4,2288.4,0.8986]
[1750551901972,0.05460675,2289.3,2289.0,3.05805352]
[1750551902419,0.05460675,2289.3,2288.4,0.8986]
[1750551902708,10.0,2289.1,2288.6,3.05860369]
[1750551902909,0.05461904,2289.0,2288.7,3.05850181]
[1750551903080,50.5466,2288.9,2288.0,0.8947]
[1750551903402,13.11302262,2288.8,2288.1,3.05917785]
[1750551903609,0.05463051,2288.7,2287.7,0.04370441]
[1750551903813,3.05758129,2289.4,2287.7,0.04370441]
[1750551903814,0.8786,2289.7,2289.6,3.05730258]
[1750551904032,0.8786,2290.1,2289.4,3.05756966]
[1750551904215,0.8786,2290.1,2290.0,3.05676855]
[1750551904516,0.05458528,2290.1,2289.2,0.8947]
[1750551904667,40.0,2289.9,2289.3,3.0576133]
[1750551904869,40.0,2289.9,2288.1,11.89574221]
[1750551904870,0.8786,2289.6,2288.2,10.0]
[1750551905120,10.8786,2289.1,2287.6,0.8947]
[1750551905270,10.0,2288.7,2288.1,3.05923081]
[1750551905477,10.8786,2288.9,2288.2,0.04370546]
[1750551905776,0.8786,2288.9,2287.7,0.55]
[1750551905994,0.05461463,2288.9,2287.8,3.05970801]
[1750551906194,0.05461463,2288.9,2288.7,3.05838361]
[1750551906397,0.05461463,2288.9,2287.7,3.05984176]
[1750551906398,0.05461463,2288.9,2288.8,3.05837119]
[1750551907122,0.05461463,2288.9,2288.3,3.05899808]
[1750551907123,10.486,2289.0,2288.9,3.05823758]
[1750551907429,10.486,2289.0,2288.8,3.05835346]
[1750551907712,10.486,2289.0,2288.9,3.05823758]
[1750551907920,10.486,2289.0,2288.7,3.0584942]
[1750551908095,10.486,2289.0,2288.8,3.05833686]
[1750551908286,10.486,2289.0,2288.9,3.05823758]
[1750551908491,10.486,2289.0,2288.4,3.05882982]
[1750551908733,10.486,2289.0,2288.8,3.0583282]
[1750551909036,10.05461375,2288.9,2287.9,3.05948968]
[1750551909203,10.8839,2288.7,2287.7,3.05984176]
[1750551909403,10.8839,2288.7,2288.6,3.05863846]
[1750551909611,0.8839,2288.7,2288.6,3.05863846]
[1750551909813,0.93852031,2288.7,2287.4,14.27760563]
[1750551910013,0.93852031,2288.7,2288.2,3.05905128]
[1750551910312,0.93852031,2288.7,2288.4,3.05886591]
[1750551910518,30.0,2289.0,2288.9,3.05823758]
[1750551910721,0.8839,2290.1,2289.2,3.05783679]
[1750551910900,0.8839,2290.1,2289.0,0.8925]
[1750551910901,30.0,2290.0,2289.5,3.05742528]
[1750551911103,0.05460466,2289.9,2288.8,3.05837119]
[1750551911302,10.05460466,2289.9,2289.7,3.05715354]
[1750551911503,40.0,2289.4,2288.5,0.8925]
[1750551911804,40.0,2289.4,2288.0,3.05939322]
[1750551911805,30.0,2289.1,2288.0,3.9518707]
[1750551912132,30.0,2288.8,2287.9,3.05948179]
[1750551912336,0.8839,2288.4,2287.7,3.05984176]
[1750551912537,10.0,2288.2,2287.4,0.2210571]
[1750551912722,3.54663983,2288.1,2287.8,3.05961974]
[1750551912910,10.0,2288.0,2287.6,3.05987012]
[1750551913100,0.05464369,2287.9,2287.4,0.2210571]
[1750551913336,9.70064369,2287.9,2287.5,3.06010928]
[1750551913529,9.646,2287.9,2287.6,3.05996188]
[1750551913757,9.646,2287.9,2287.4,0.2210571]
[1750551913943,0.8839,2288.4,2287.4,0.2210571]
[1750551914155,5.68067935,2290.1,2288.6,3.05863846]
[1750551914156,0.05462462,2288.7,2288.6,3.05863846]
[1750551914470,0.05462075,2288.7,2288.6,3.05859936]
[1750551914670,0.8935,2288.8,2288.7,3.05850482]
[1750551915166,1.32369966,2288.8,2287.5,3.05999811]
[1750551915355,9.69763143,2288.7,2287.7,0.39212981]
[1750551915552,10.0,2288.6,2287.4,0.2210571]
[1750551915867,10.0,2288.4,2288.3,3.05900827]
[1750551916063,13.133,2289.1,2289.0,3.05807689]
[1750551916265,3.493,2289.1,2289.0,3.05810397]
[1750551916446,13.132,2289.4,2289.2,3.05773363]
[1750551916771,10.05460727,2289.3,2289.2,3.05773363]
[1750551917067,0.8935,2289.0,2288.7,3.05840211]
[1750551917370,9.69261824,2288.9,2288.8,3.05835468]
[1750551917566,1.25409989,2289.3,2288.8,3.05835468]
[1750551917770,13.54721005,2289.2,2289.1,3.05797038]
[1750551917969,0.36359989,2289.2,2289.1,3.05797038]
[1750551918358,0.36359989,2289.2,2289.1,3.66957758]
[1750551918759,3.493,2289.5,2289.4,3.05756966]
[1750551919981,0.05459953,2289.7,2289.6,3.05730258]
[1750551920132,10.05459697,2289.7,2289.1,3.05784288]
[1750551920335,3.1066097,2289.6,2289.2,3.0578128]
[1750551920669,21.0115,2289.8,2289.7,3.05716906]
[1750551920670,10.493,2289.8,2289.7,3.05716906]
[1750551920970,1.20351388,2290.2,2289.1,0.8615]
[1750551921157,0.94510194,2290.1,2290.0,3.05676855]
[1750551921366,1.20351388,2290.2,2290.1,3.05663508]
[1750551921690,0.05458216,2290.7,2290.6,3.05596786]
[1750551921844,0.8905,2291.3,2291.0,3.0554343]
[1750551922049,0.8905,2291.3,2290.5,3.05602256]
[1750551922360,30.0,2290.2,2289.4,1.30007232]
[1750551922675,30.0,2290.2,2288.3,9.17409334]
[1750551922676,40.0,2290.0,2289.0,0.8615]
[1750551922978,10.0,2290.0,2289.3,3.05770039]
[1750551923287,10.0,2290.0,2289.4,3.05756966]
[1750551923453,10.0,2290.0,2288.5,0.9495]
[1750551923802,10.0,2289.8,2289.5,3.05733602]
[1750551924096,0.8881,2289.5,2289.4,3.05756966]
[1750551924611,0.8881,2289.5,2288.4,10.0]
[1750551924612,0.8881,2290.4,2290.3,3.05636816]
[1750551924906,0.94267665,2290.9,2290.0,3.05676855]
[1750551925204,30.0,2290.8,2289.6,3.05730258]
[1750551925416,10.0,2290.5,2289.6,3.05730258]
[1750551925592,0.8881,2290.3,2289.7,3.05703556]
[1750551925760,10.0,2290.1,2289.9,3.05681201]
[1750551925964,0.05458919,2290.0,2289.9,3.05690204]
[1750551926205,0.94268919,2290.3,2290.0,3.05670835]
[1750551926572,0.94268919,2290.3,2289.9,3.05681464]
[1750551926782,10.0,2290.1,2289.8,3.0570128]
[1750551926996,0.05459014,2290.0,2289.8,3.0570128]
[1750551927186,0.05459014,2290.0,2289.8,3.05701231]
[1750551927391,0.05459014,2290.0,2289.9,3.05690204]
[1750551927700,0.05459024,2290.1,2289.9,3.05690204]
[1750551928599,0.05459024,2290.1,2289.6,3.05727465]
[1750551928900,10.0,2289.7,2288.3,10.12159334]
[1750551929057,10.0,2289.5,2289.0,3.05807243]
[1750551929258,0.05461355,2289.4,2288.3,10.12159334]
[1750551929513,10.0,2288.9,2288.7,3.05840284]
[1750551929713,0.05462017,2288.8,2287.8,0.9475]
[1750551930012,0.05462017,2288.8,2288.0,3.05944055]
[1750551930192,0.05462017,2288.8,2287.8,0.9475]
[1750551930371,10.05462017,2288.8,2287.8,0.9475]
[1750551930560,10.05462017,2288.8,2288.1,3.05927159]
[1750551930561,1.96526202,2288.7,2288.1,3.05927159]
[1750551930761,3.05890858,2288.4,2287.4,0.2210571]
[1750551930985,9.64863842,2288.3,2287.7,3.05979506]
[1750551931175,0.05464001,2288.2,2287.4,0.26476911]
[1750551931386,0.05464001,2288.2,2287.9,3.05957101]
[1750551931779,0.05464001,2288.2,2287.9,3.05956706]
[1750551931966,0.05464001,2288.2,2287.4,0.2210571]
[1750551932298,0.05464001,2288.2,2287.6,3.05997552]
[1750551932511,0.9292,2288.5,2288.1,3.05930684]
[1750551932707,2.40738135,2289.4,2288.6,3.05863846]
[1750551932708,0.9453,2288.9,2288.6,3.05863846]
[1750551932884,0.9453,2288.9,2288.8,3.05837119]
[1750551933065,0.05461537,2289.1,2289.0,3.05810397]
[1750551933284,0.05461143,2289.2,2289.0,3.05810397]
[1750551933484,10.05461143,2289.2,2289.0,3.05810397]
[1750551933817,1.37370775,2289.7,2288.2,0.55]
[1750551933980,0.05460538,2289.6,2289.1,3.05794967]
[1750551934170,3.05745515,2289.5,2288.9,3.05822489]
[1750551934366,0.9453,2289.3,2288.8,3.05825953]
[1750551934602,10.0,2289.1,2288.9,3.05822152]
[1750551934802,10.0,2289.1,2288.1,3.05930684]
[1750551935115,10.0,2289.1,2288.2,0.39234068]
[1750551935316,10.0,2289.1,2288.7,3.05840916]
[1750551935485,10.0,2289.1,2288.8,3.0582975]
[1750551935673,10.0,2289.1,2288.8,3.05832431]
[1750551936192,10.0,2289.1,2288.7,3.05847437]
[1750551936391,10.0,2289.1,2288.9,3.05818463]
[1750551936597,9.586,2289.2,2288.9,3.05818463]
[1750551936810,9.586,2289.2,2288.6,3.05855196]
[1750551936993,0.0546131,2289.1,2288.7,3.05840285]
[1750551937199,0.0546131,2289.1,2288.7,3.05845855]
[1750551937200,10.0546131,2289.1,2288.7,3.05845855]
[1750551937509,0.9453,2289.3,2289.0,3.05799282]
[1750551937721,0.05460916,2289.6,2288.5,0.8641]
[1750551937904,0.05460916,2289.6,2288.6,1.13446128]
[1750551938106,0.05460916,2289.6,2289.2,3.05775216]
[1750551938270,0.05460916,2289.6,2289.3,3.05767332]
[1750551938723,0.05460916,2289.6,2288.7,3.05850482]
[1750551939008,10.0,2289.5,2288.8,3.05836237]
[1750551939166,10.0,2289.3,2288.8,3.05836237]
[1750551939371,10.0,2289.3,2289.1,3.05797038]
[1750551939585,10.0,2289.5,2288.9,3.05812501]
[1750551939819,0.05460939,2289.4,2289.0,3.05810397]
[1750551939979,0.05460939,2289.4,2289.1,3.05792498]
[1750551940188,0.05460939,2289.4,2289.0,3.05810397]
[1750551940189,0.05460939,2289.4,2289.0,3.05807435]
[1750551940781,0.05460939,2289.4,2289.0,3.05805372]
[1750551940994,13.43,2289.3,2289.0,3.05805372]
[1750551941197,0.05460913,2289.2,2289.0,3.05805372]
[1750551941580,0.05460913,2289.2,2289.1,3.05797038]
[1750551941818,0.05460913,2289.2,2288.1,1.30411537]
[1750551941819,0.05460913,2289.2,2288.9,3.05818008]
[1750551942120,0.05460913,2289.2,2288.8,3.05831853]
[1750551942319,10.05460913,2289.2,2288.1,0.8641]
[1750551942476,13.43,2289.3,2288.1,0.8641]
[1750551942682,0.05461605,2289.2,2289.1,3.05797038]
[1750551942877,0.05461605,2289.2,2288.3,3.05903946]
[1750551942878,10.0,2289.3,2288.3,3.05903946]
[1750551943082,0.05461055,2289.2,2289.1,3.05794492]
[1750551943293,0.99991055,2289.2,2289.1,3.05794492]
[1750551943523,10.99991055,2289.2,2287.8,3.05970801]
[1750551943687,10.0,2289.1,2287.9,0.04369684]
[1750551944019,10.0,2288.7,2287.6,0.8641]
[1750551944331,9.61462819,2288.6,2288.2,3.05907194]
[1750551944614,0.05462808,2288.5,2288.2,3.05907194]
[1750551944785,10.05462808,2288.5,2287.6,0.8641]
[1750551944980,0.05462817,2288.4,2287.7,3.45216626]
[1750551945208,0.05462817,2288.4,2288.0,3.05934541]
[1750551945403,0.05462817,2288.4,2287.7,0.39241062]
[1750551945607,0.05462817,2288.4,2287.7,3.49591031]
[1750551945608,9.556,2288.3,2287.7,3.49591031]
[1750551945992,0.9453,2288.5,2287.8,0.43600103]
[1750551946193,10.0,2288.6,2288.5,3.05877212]
[1750551946587,0.9453,2288.8,2288.5,3.05877212]
[1750551946793,10.05462221,2288.7,2288.5,3.05872631]
[1750551947008,10.0,2288.7,2288.2,3.05908986]
[1750551947205,10.0,2288.7,2287.8,3.49567573]
[1750551947206,0.05462627,2288.6,2287.8,3.49567573]
[1750551947412,0.05462627,2288.6,2287.8,0.43600103]
[1750551947582,0.05462627,2288.6,2288.3,3.05902771]
[1750551947788,2.1099189,2288.6,2287.4,0.54919445]
[1750551947989,2.1099189,2288.6,2288.1,3.05917738]
[1750551948826,40.0,2288.5,2287.4,0.54919445]
[1750551948999,10.0,2288.3,2287.8,3.05961734]
[1750551949188,0.05463852,2288.2,2287.5,3.06010928]
[1750551949389,0.05463852,2288.2,2287.9,3.05949176]
[1750551949604,0.05463852,2288.2,2287.8,3.05965776]
[1750551949923,0.05463852,2288.2,2288.1,3.05930684]
[1750551950090,10.0,2288.2,2288.1,3.05930684]
[1750551950520,0.8955,2288.5,2287.9,3.05957428]
[1750551950831,12.974,2288.6,2288.4,3.05890578]
[1750551951122,12.974,2288.6,2288.5,3.05877212]
[1750551951123,22.974,2288.6,2288.5,3.05877212]
[1750551951432,12.974,2288.6,2288.5,3.05877212]
[1750551951586,0.8955,2288.9,2288.7,3.05846237]
[1750551951918,10.95011601,2288.9,2287.5,3.06010928]
[1750551952088,10.95011601,2288.9,2288.2,3.05907109]
[1750551952089,10.0,2288.7,2288.2,3.05907109]
[1750551952295,9.59162926,2288.6,2288.2,3.05908292]
[1750551952536,0.05462925,2288.5,2288.1,3.05926327]
[1750551952706,0.05462925,2288.5,2287.9,3.0594956]
[1750551952707,10.05462925,2288.5,2287.9,3.0594956]
[1750551953027,0.05463484,2288.4,2288.0,3.05944055]
[1750551953229,10.9736,2288.3,2286.9,3.06080639]
[1750551953529,13.01963865,2288.2,2287.8,3.05968975]
[1750551953688,12.965,2288.2,2287.5,3.06010928]
[1750551953887,12.965,2288.2,2287.8,3.05960794]
[1750551954100,12.965,2288.2,2287.9,3.05956708]
[1750551954302,12.965,2288.2,2288.1,3.05930684]
[1750551954498,10.9736,2288.3,2288.2,3.05917314]
[1750551954499,0.9736,2288.3,2288.2,3.05917314]
[1750551954722,0.9736,2288.3,2287.9,3.05955781]
[1750551954930,1.02823263,2288.3,2287.4,0.2210571]
[1750551955131,9.529,2288.2,2287.9,3.05945392]
[1750551955337,0.05463602,2288.1,2288.0,3.05944055]
[1750551955503,9.529,2288.2,2288.1,3.05930684]
[1750551955831,9.529,2288.2,2287.4,0.2210571]
[1750551956000,0.05463905,2288.1,2287.8,3.05960427]
[1750551956200,0.05463905,2288.1,2287.9,3.05955798]
[1750551956729,0.05463905,2288.1,2287.8,3.05965741]
[1750551956905,0.05463905,2288.1,2287.9,3.05957224]
[1750551957110,0.05463905,2288.1,2287.8,3.05968255]
[1750551957421,0.05463905,2288.1,2287.4,0.2210571]
[1750551957422,10.0,2287.8,2287.4,0.2210571]
[1750551957595,13.00765716,2287.7,2287.4,0.2210571]
[1750551957794,10.0,2287.7,2287.4,3.28127025]
[1750551958012,43.06010928,2287.5,2287.4,0.2210571]
[1750551958236,43.06010928,2287.5,2284.9,3.06358022]
[1750551958237,7.665046,2286.8,2284.9,3.06358022]
[1750551958555,0.9608,2286.0,2285.5,3.06276496]
[1750551958876,0.48479443,2286.2,2284.9,10.9759]
[1750551959043,0.05469726,2286.2,2285.9,3.06212992]
[1750551959195,0.05469726,2286.2,2286.0,3.06203047]
[1750551959395,0.05469726,2286.2,2285.5,3.10647945]
[1750551959620,10.0,2286.3,2285.9,3.06214533]
[1750551959819,13.48568466,2286.4,2286.2,3.06173465]
[1750551959820,10.0,2286.4,2286.2,3.06173465]
[1750551960013,0.05467686,2286.3,2286.0,3.06199174]
[1750551960219,0.9608,2286.2,2285.1,0.2210571]
[1750551960433,0.9608,2285.9,2285.1,0.2210571]
[1750551960656,0.05469473,2285.8,2285.7,3.06251914]
[1750551960936,0.43989398,2286.4,2285.8,3.06238516]
[1750551960937,0.05468955,2286.4,2285.8,3.06238516]
[1750551961098,0.9608,2286.7,2285.7,3.67503715]
[1750551961099,1.01547078,2286.7,2286.6,3.06131374]
[1750551961295,1.01547078,2286.7,2286.2,3.0618182]
[1750551961493,1.45051009,2286.7,2285.8,0.04374167]
[1750551961730,1.01547078,2286.7,2285.9,3.06218259]
[1750551962035,4.3928,2286.7,2286.6,3.06131374]
[1750551962232,3.432,2286.7,2286.6,3.06131374]
[1750551962744,1.31000098,2287.3,2287.2,3.06051066]
[1750551962929,4.44744723,2288.0,2287.9,3.05957428]
[1750551963123,4.75749712,2288.0,2287.9,3.05957428]
[1750551963329,3.79669712,2288.0,2287.9,3.05957428]
[1750551963626,3.79669712,2288.0,2287.9,3.10328236]
[1750551963627,0.36469712,2288.0,2287.9,3.10328236]
[1750551963830,0.36469712,2288.0,2287.9,3.05957428]
[1750551964734,0.36469712,2288.0,2287.9,3.67150314]
[1750551965503,0.36469712,2288.0,2287.9,3.71520643]
[1750551965834,3.432,2288.6,2288.5,3.05877212]
[1750551966038,3.79542035,2288.6,2288.5,3.05877212]
[1750551966225,0.36342035,2288.6,2288.5,3.05877212]
[1750551966614,0.36342035,2288.6,2288.5,4.95670116]
[1750551967139,0.36342035,2288.6,2288.5,5.0003878]
[1750551968018,0.36342035,2288.6,2288.5,4.95670116]
[1750551968213,0.05460718,2289.5,2289.4,3.05756966]
[1750551968538,0.05460718,2289.5,2289.2,3.05770705]
[1750551968539,3.371,2289.8,2289.7,3.05716906]
[1750551968754,3.371,2289.8,2289.2,3.05777683]
[1750551968755,0.9585,2290.4,2290.3,3.05636816]
[1750551968972,0.9585,2290.4,2290.1,3.05654294]
[1750551969152,3.371,2290.6,2290.3,3.05623763]
[1750551969465,0.0545701,2291.0,2290.3,3.05629306]
[1750551969628,0.0545701,2291.0,2290.9,3.05556768]
[1750551969826,3.371,2291.3,2291.0,3.0554343]
[1750551971317,3.371,2291.3,2290.9,3.0555364]
[1750551971557,0.05456381,2291.0,2290.9,3.0555364]
[1750551972354,0.05456381,2291.0,2290.2,0.9283]